fUSD/lending_fUSD_20260613
["ID","MTS","AMOUNT","RATE_DAILY","PERIOD"]
[424963300,1781357449000,-447.0,0.00022,2]
[424963298,1781357449000,-768.0,0.00022,2]
[424963302,1781357449000,-181.0,0.00022,2]
[424963306,1781357449000,-587.5,0.00022353,2]
[424963304,1781357449000,-373.0,0.00022,2]
[424963309,1781357449000,-270.0455652,0.0002248,2]
[424963260,1781357449000,-151.0,0.00021384,2]
[424963308,1781357449000,-151.0,0.0002248,2]
[424963305,1781357449000,-252.0,0.00022,2]
[424963283,1781357449000,-5000.0,0.00021918,2]
[424963291,1781357449000,-219.0,0.00022,2]
[424963303,1781357449000,-707.0,0.00022,2]
[424963282,1781357449000,-317.0,0.00021918,2]
[424963290,1781357449000,-173.591583,0.00022,2]
[424963262,1781357449000,-2494.55939288,0.00021384,2]
[424963263,1781357449000,-60169.04793907,0.00021429,2]
[424963267,1781357449000,-4490.61,0.0002166,2]
[424963264,1781357449000,-500.0,0.00021534,2]
[424963266,1781357449000,-1228.0,0.00021535,2]
[424963268,1781357449000,-500.0,0.00021669,2]
[424963271,1781357449000,-500.0,0.00021669,2]
[424963269,1781357449000,-710.35,0.00021669,2]
[424963270,1781357449000,-500.0,0.00021669,2]
[424963274,1781357449000,-500.0,0.00021669,2]
[424963265,1781357449000,-383.0,0.00021535,2]
[424963275,1781357449000,-500.0,0.00021669,2]
[424963272,1781357449000,-675.96,0.00021669,2]
[424963273,1781357449000,-1163.44,0.00021669,2]
[424963277,1781357449000,-500.0,0.00021669,2]
[424963279,1781357449000,-14069.3256,0.00021879,7]
[424963280,1781357449000,-412.0,0.00021918,2]
[424963278,1781357449000,-500.0,0.00021669,2]
[424963281,1781357449000,-313.0,0.00021918,2]
[424963289,1781357449000,-500.0,0.00022,3]
[424963288,1781357449000,-2586.85809042,0.00021932,2]
[424963276,1781357449000,-500.0,0.00021669,2]
[424963346,1781357450000,-248.0,0.00024,2]
[424963344,1781357450000,-162.0,0.00024,2]
[424963340,1781357450000,-173.591583,0.00024,2]
[424963331,1781357450000,-29829.69577544,0.00023045,2]
[424963338,1781357450000,-151.0,0.00023576,2]
[424963336,1781357450000,-290.3986294,0.00023576,2]
[424963332,1781357450000,-308.71156158,0.00023212,2]
[424963337,1781357450000,-2884.75459676,0.00023576,2]
[424963342,1781357450000,-450.0,0.00024,2]
[424963348,1781357450000,-768.0,0.00024,2]
[424963345,1781357450000,-319.0,0.00024,2]
[424963339,1781357450000,-200.0,0.00023799,2]
[424963343,1781357450000,-261.0,0.00024,2]
[424963356,1781357450000,-775.4783256,0.00024122,2]
[424963347,1781357450000,-500.0,0.00024,2]
[424963350,1781357450000,-447.0,0.00024,2]
[424963351,1781357450000,-181.0,0.00024,2]
[424963335,1781357450000,-242.15909246,0.00023576,2]
[424963349,1781357450000,-1813.0,0.00024,2]
[424963341,1781357450000,-219.0,0.00024,2]
[424963333,1781357450000,-4490.61,0.0002332,7]
[424963322,1781357450000,-707.0,0.00023,2]
[424963330,1781357450000,-331.15,0.00023035,2]
[424963352,1781357450000,-707.0,0.00024,2]
[424963310,1781357450000,-2682.57183977,0.0002248,2]
[424963311,1781357450000,-500.0,0.00022822,2]
[424963312,1781357450000,-219.0,0.00023,2]
[424963313,1781357450000,-450.0,0.00023,2]
[424963314,1781357450000,-261.0,0.00023,2]
[424963315,1781357450000,-158.0,0.00023,2]
[424963317,1781357450000,-248.0,0.00023,2]
[424963316,1781357450000,-319.0,0.00023,2]
[424963334,1781357450000,-60169.04793907,0.00023436,2]
[424963318,1781357450000,-768.0,0.00023,2]
[424963319,1781357450000,-1813.0,0.00023,2]
[424963324,1781357450000,-252.0,0.00023,2]
[424963325,1781357450000,-150.0,0.00023014,2]
[424963326,1781357450000,-233.5188934,0.00023028,2]
[424963328,1781357450000,-280.03725111,0.00023028,2]
[424963321,1781357450000,-181.0,0.00023,2]
[424963323,1781357450000,-373.0,0.00023,2]
[424963327,1781357450000,-151.0,0.00023028,2]
[424963329,1781357450000,-2781.82699784,0.00023028,2]
[424963320,1781357450000,-447.0,0.00023,2]
[424963354,1781357450000,-252.0,0.00024,2]
[424963360,1781357450000,-2991.49051684,0.00024124,2]
[424963353,1781357450000,-373.0,0.00024,2]
[424963381,1781357450000,-779.0,0.00025,2]
[424963383,1781357450000,-460.36885265,0.00025,2]
[424963382,1781357450000,-1813.0,0.00025,2]
[424963384,1781357450000,-190.0,0.00025,2]
[424963385,1781357450000,-721.0,0.00025,2]
[424963386,1781357450000,-392.29825713,0.00025,2]
[424963389,1781357450000,-200.0,0.00025141,2]
[424963391,1781357450000,-270.0455652,0.0002522,2]
[424963388,1781357450000,-200.0,0.00025141,2]
[424963376,1781357450000,-229.0,0.00025,2]
[424963392,1781357450000,-150.0,0.00025373,2]
[424963393,1781357450000,-60169.04793907,0.00025443,2]
[424963396,1781357450000,-550.0,0.00026,2]
[424963395,1781357450000,-163.0,0.00025825,2]
[424963394,1781357450000,-280.03725111,0.00025768,2]
[424963397,1781357450000,-156.33243724,0.00026027,2]
[424963399,1781357450000,-538.84,0.0002626,7]
[424963400,1781357450000,-587.5,0.00026296,2]
[424963398,1781357450000,-568.18,0.0002626,7]
[424963355,1781357450000,-621.78829552,0.00024122,2]
[424963390,1781357450000,-200.0,0.00025142,2]
[424963377,1781357450000,-456.0,0.00025,2]
[424963387,1781357450000,-252.0,0.00025,2]
[424963380,1781357450000,-263.0,0.00025,2]
[424963357,1781357450000,-151.0,0.00024122,2]
[424963378,1781357450000,-280.0,0.00025,2]
[424963358,1781357450000,-251.11897888,0.00024124,2]
[424963401,1781357450000,-290.3986294,0.00026316,2]
[424963359,1781357450000,-301.14337869,0.00024124,2]
[424963363,1781357450000,-587.5,0.00024324,2]
[424963364,1781357450000,-150.0,0.00024465,20]
[424963362,1781357450000,-150.0,0.00024164,2]
[424963369,1781357450000,-490.42,0.00024658,2]
[424963365,1781357450000,-500.0,0.00024465,2]
[424963361,1781357450000,-151.0,0.00024124,2]
[424963370,1781357450000,-156.33243724,0.00024658,2]
[424963379,1781357450000,-336.0,0.00025,2]
[424963367,1781357450000,-383.0,0.00024535,2]
[424963374,1781357450000,-29829.69577544,0.00024997,2]
[424963372,1781357450000,-480.89,0.0002471,7]
[424963366,1781357450000,-500.0,0.00024534,2]
[424963375,1781357450000,-6708.04765679,0.00025,2]
[424963371,1781357450000,-260.4103811,0.00024672,2]
[424963368,1781357450000,-1000.0,0.00024658,2]
[424963373,1781357450000,-4490.61,0.0002498,7]
[424963436,1781357451000,-710.35,0.00027396,2]
[424963428,1781357451000,-207.91508189,0.00027316,7]
[424963431,1781357451000,-161.29307202,0.00027316,7]
[424963430,1781357451000,-153.58795778,0.00027316,5]
[424963423,1781357451000,-158.43930137,0.00027316,7]
[424963432,1781357451000,-159.17453444,0.00027316,7]
[424963429,1781357451000,-282.73544227,0.00027316,7]
[424963434,1781357451000,-500.0,0.00027356,7]
[424963433,1781357451000,-1317.93566165,0.00027319,2]
[424963440,1781357451000,-1163.44,0.00027396,2]
[424963446,1781357451000,-1500.0,0.00027397,2]
[424963442,1781357451000,-156.33243724,0.00027396,2]
[424963435,1781357451000,-500.0,0.00027396,2]
[424963439,1781357451000,-675.96,0.00027396,2]
[424963441,1781357451000,-500.0,0.00027396,2]
[424963437,1781357451000,-500.0,0.00027396,2]
[424963444,1781357451000,-500.0,0.00027396,2]
[424963443,1781357451000,-500.0,0.00027396,2]
[424963445,1781357451000,-500.0,0.00027396,2]
[424963427,1781357451000,-190.08424439,0.00027316,7]
[424963438,1781357451000,-500.0,0.00027396,2]
[424963426,1781357451000,-155.15963923,0.00027316,7]
[424963402,1781357451000,-4490.61,0.0002664,7]
[424963424,1781357451000,-255.95345063,0.00027316,7]
[424963447,1781357451000,-300.0,0.00027397,2]
[424963403,1781357451000,-150.0,0.00026641,2]
[424963405,1781357451000,-644.79446245,0.00026861,2]
[424963404,1781357451000,-163.222,0.00026808,120]
[424963412,1781357451000,-500.0,0.00026999,2]
[424963407,1781357451000,-151.0,0.00026861,2]
[424963406,1781357451000,-804.17102365,0.00026861,2]
[424963409,1781357451000,-1051.80794165,0.00026936,2]
[424963411,1781357451000,-29829.69577544,0.00026948,2]
[424963425,1781357451000,-180.65235332,0.00027316,7]
[424963408,1781357451000,-301.14337869,0.00026864,2]
[424963413,1781357451000,-250000.0,0.00027,2]
[424963416,1781357451000,-201.83257922,0.0002731,7]
[424963417,1781357451000,-193.7634958,0.0002731,7]
[424963415,1781357451000,-191.29132035,0.0002731,7]
[424963418,1781357451000,-177.47671931,0.0002731,7]
[424963421,1781357451000,-150.3248823,0.00027315,7]
[424963419,1781357451000,-173.45176964,0.0002731,7]
[424963422,1781357451000,-187.46910649,0.00027315,7]
[424963420,1781357451000,-199.68649325,0.0002731,7]
[424963414,1781357451000,-522.67,0.00027048,7]
[424963448,1781357451000,-490.42,0.00027397,2]
[424963410,1781357451000,-1000.0,0.00026936,2]
[424963449,1781357451000,-16983.57,0.00027397,10]
[424963474,1781357451000,-158.29568498,0.00027419,7]
[424963478,1781357451000,-170.52386111,0.00027419,7]
[424963476,1781357451000,-158.05101403,0.00027419,7]
[424963480,1781357451000,-208.37255376,0.00027419,7]
[424963479,1781357451000,-186.3723746,0.00027419,7]
[424963482,1781357451000,-219.55162222,0.00027419,7]
[424963483,1781357451000,-480.89,0.0002742,7]
[424963488,1781357451000,-151.0,0.00027547,7]
[424963481,1781357451000,-155.55550024,0.00027419,7]
[424963487,1781357451000,-218.0,0.00027547,2]
[424963489,1781357451000,-500.0,0.00027549,2]
[424963485,1781357451000,-500.0,0.000275,7]
[424963486,1781357451000,-383.0,0.00027535,2]
[424963490,1781357451000,-500.0,0.00027549,2]
[424963493,1781357451000,-1353.13,0.0002755,7]
[424963491,1781357451000,-500.0,0.00027549,120]
[424963496,1781357451000,-1353.13,0.0002755,2]
[424963494,1781357451000,-1353.13,0.0002755,2]
[424963495,1781357451000,-1353.13,0.0002755,7]
[424963492,1781357451000,-500.0,0.00027549,120]
[424963450,1781357451000,-162.70695822,0.00027397,7]
[424963475,1781357451000,-157.55030641,0.00027419,7]
[424963472,1781357451000,-151.11382232,0.00027419,7]
[424963484,1781357451000,-60169.04793907,0.0002745,2]
[424963470,1781357451000,-155.39011214,0.00027419,7]
[424963452,1781357451000,-158.63679495,0.00027419,7]
[424963455,1781357451000,-181.9167785,0.00027419,7]
[424963453,1781357451000,-170.01148161,0.00027419,7]
[424963454,1781357451000,-162.1899147,0.00027419,7]
[424963459,1781357451000,-181.01184802,0.00027419,2]
[424963456,1781357451000,-153.96779606,0.00027419,7]
[424963458,1781357451000,-159.4315778,0.00027419,7]
[424963457,1781357451000,-186.98476602,0.00027419,7]
[424963451,1781357451000,-174.75028777,0.00027419,7]
[424963461,1781357451000,-171.15036604,0.00027419,7]
[424963463,1781357451000,-158.54540839,0.00027419,7]
[424963460,1781357451000,-195.67392179,0.00027419,7]
[424963466,1781357451000,-160.09484693,0.00027419,7]
[424963467,1781357451000,-175.91118096,0.00027419,7]
[424963468,1781357451000,-171.89389994,0.00027419,7]
[424963464,1781357451000,-173.62130704,0.00027419,7]
[424963465,1781357451000,-204.19098941,0.00027419,7]
[424963469,1781357451000,-154.90313853,0.00027419,7]
[424963471,1781357451000,-215.59215727,0.00027419,7]
[424963473,1781357451000,-168.36977062,0.00027419,7]
[424963462,1781357451000,-178.16617722,0.00027419,7]
[424963477,1781357451000,-165.07895942,0.00027419,7]
[424963497,1781357452000,-1353.13,0.0002755,7]
[424963499,1781357452000,-83458.26974184,0.0002755,2]
[424963498,1781357452000,-1353.13,0.0002755,2]
[424963501,1781357453000,-564.7728043,0.0002755,2]
[424963500,1781357453000,-9277.17758264,0.0002755,2]
[424963554,1781357454000,-262.67,0.00027916,2]
[424963534,1781357454000,-262.67,0.00027733,2]
[424963535,1781357454000,-263.16,0.00027763,7]
[424963526,1781357454000,-262.67,0.00027672,7]
[424963527,1781357454000,-263.16,0.00027702,30]
[424963528,1781357454000,-262.67,0.00027702,30]
[424963536,1781357454000,-262.67,0.00027763,7]
[424963539,1781357454000,-1353.13,0.00027816,2]
[424963532,1781357454000,-4903.48,0.00027711,7]
[424963537,1781357454000,-263.16,0.00027794,30]
[424963538,1781357454000,-262.67,0.00027794,30]
[424963542,1781357454000,-263.16,0.00027855,7]
[424963541,1781357454000,-262.67,0.00027824,2]
[424963543,1781357454000,-262.67,0.00027855,7]
[424963545,1781357454000,-300.0,0.00027858,7]
[424963546,1781357454000,-4406.62,0.00027872,2]
[424963544,1781357454000,-867.98,0.00027858,2]
[424963548,1781357454000,-369.9,0.00027872,2]
[424963547,1781357454000,-371.28,0.00027872,2]
[424963550,1781357454000,-185.33118673,0.00027885,30]
[424963549,1781357454000,-4903.48,0.00027872,2]
[424963556,1781357454000,-262.67,0.00027946,7]
[424963551,1781357454000,-263.16,0.00027885,30]
[424963540,1781357454000,-263.16,0.00027824,2]
[424963533,1781357454000,-263.16,0.00027733,2]
[424963502,1781357454000,-317.0,8.142e-05,2]
[424963530,1781357454000,-371.28,0.00027711,7]
[424963503,1781357454000,-903.46,9.601e-05,2]
[424963552,1781357454000,-262.67,0.00027885,30]
[424963504,1781357454000,-680.0815026,9.651e-05,2]
[424963506,1781357454000,-903.46,9.699e-05,2]
[424963508,1781357454000,-1274.5231394,0.00016476,2]
[424963505,1781357454000,-223.3784974,9.651e-05,2]
[424963507,1781357454000,-1982.0,0.00015476,2]
[424963510,1781357454000,-501.0,0.00018,2]
[424963509,1781357454000,-707.4768606,0.00016476,2]
[424963511,1781357454000,-202866.32766861,0.0002755,2]
[424963513,1781357454000,-263.16,0.0002755,2]
[424963512,1781357454000,-4406.62,0.0002755,30]
[424963517,1781357454000,-262.67,0.0002755,2]
[424963522,1781357454000,-263.16,0.00027641,2]
[424963515,1781357454000,-369.9,0.0002755,30]
[424963521,1781357454000,-262.67,0.00027611,30]
[424963524,1781357454000,-1353.13,0.0002766,7]
[424963516,1781357454000,-4903.48,0.0002755,30]
[424963518,1781357454000,-263.16,0.0002758,7]
[424963520,1781357454000,-263.16,0.00027611,30]
[424963514,1781357454000,-371.28,0.0002755,30]
[424963519,1781357454000,-262.67,0.0002758,7]
[424963523,1781357454000,-262.67,0.00027641,2]
[424963529,1781357454000,-4406.62,0.00027711,7]
[424963525,1781357454000,-263.16,0.00027672,7]
[424963531,1781357454000,-369.9,0.00027711,7]
[424963553,1781357454000,-263.16,0.00027916,2]
[424963571,1781357454000,-263.16,0.00028099,2]
[424963555,1781357454000,-263.16,0.00027946,7]
[424963591,1781357454000,-500.0,0.00028493,2]
[424963588,1781357454000,-500.0,0.00028493,2]
[424963589,1781357454000,-500.0,0.00028493,2]
[424963590,1781357454000,-500.0,0.00028493,2]
[424963587,1781357454000,-350.0,0.00028492,9]
[424963557,1781357454000,-1353.13,0.00027972,7]
[424963592,1781357454000,-500.0,0.00028493,2]
[424963594,1781357454000,-500.0,0.00028493,2]
[424963595,1781357454000,-500.0,0.00028493,2]
[424963596,1781357454000,-500.0,0.00028493,2]
[424963599,1781357454000,-500.0,0.00028493,2]
[424963583,1781357454000,-151.0,0.00028395,2]
[424963597,1781357454000,-500.0,0.00028493,2]
[424963601,1781357454000,-500.0,0.00028493,2]
[424963600,1781357454000,-500.0,0.00028493,2]
[424963602,1781357454000,-500.0,0.00028493,2]
[424963604,1781357454000,-500.0,0.00028493,2]
[424963603,1781357454000,-500.0,0.00028493,2]
[424963605,1781357454000,-641.28107162,0.00028493,2]
[424963606,1781357454000,-150.0,0.00028493,2]
[424963607,1781357454000,-150.0,0.00028493,2]
[424963610,1781357454000,-150.0,0.00028493,2]
[424963608,1781357454000,-150.0,0.00028493,2]
[424963609,1781357454000,-150.0,0.00028493,2]
[424963598,1781357454000,-500.0,0.00028493,2]
[424963581,1781357454000,-4490.61,0.000283,7]
[424963593,1781357454000,-500.0,0.00028493,2]
[424963585,1781357454000,-151.0,0.00028395,2]
[424963558,1781357454000,-150.0,0.00027973,2]
[424963559,1781357454000,-263.16,0.00027977,30]
[424963561,1781357454000,-600.0,0.00028,2]
[424963560,1781357454000,-262.67,0.00027977,30]
[424963586,1781357454000,-163.33,0.000284,7]
[424963565,1781357454000,-371.28,0.00028033,30]
[424963564,1781357454000,-4406.62,0.00028033,30]
[424963568,1781357454000,-263.16,0.00028038,7]
[424963563,1781357454000,-262.67,0.00028007,2]
[424963566,1781357454000,-369.9,0.00028033,30]
[424963567,1781357454000,-4903.48,0.00028033,30]
[424963570,1781357454000,-263.16,0.00028068,30]
[424963562,1781357454000,-263.16,0.00028007,2]
[424963572,1781357454000,-1353.17,0.0002813,2]
[424963569,1781357454000,-262.67,0.00028038,7]
[424963584,1781357454000,-151.0,0.00028395,2]
[424963582,1781357454000,-151.0,0.00028382,2]
[424963578,1781357454000,-4903.48,0.00028194,7]
[424963577,1781357454000,-369.9,0.00028194,7]
[424963580,1781357454000,-1317.9356616,0.00028299,2]
[424963575,1781357454000,-4406.62,0.00028194,7]
[424963576,1781357454000,-371.28,0.00028194,7]
[424963579,1781357454000,-587.5,0.00028267,2]
[424963573,1781357454000,-11235.14642799,0.0002813,2]
[424963574,1781357454000,-263.3,0.0002813,7]
[424963616,1781357455000,-150.0,0.00028493,2]
[424963624,1781357455000,-150.0,0.00028493,2]
[424963622,1781357455000,-150.0,0.00028493,2]
[424963623,1781357455000,-150.0,0.00028493,2]
[424963625,1781357455000,-150.0,0.00028493,2]
[424963618,1781357455000,-150.0,0.00028493,2]
[424963619,1781357455000,-150.0,0.00028493,2]
[424963615,1781357455000,-150.0,0.00028493,2]
[424963617,1781357455000,-150.0,0.00028493,2]
[424963613,1781357455000,-150.0,0.00028493,2]
[424963611,1781357455000,-150.0,0.00028493,2]
[424963612,1781357455000,-150.0,0.00028493,2]
[424963614,1781357455000,-150.0,0.00028493,2]
[424963621,1781357455000,-150.0,0.00028493,2]
[424963620,1781357455000,-150.0,0.00028493,2]
[424963626,1781357455000,-150.0,0.00028493,2]
[424963627,1781357455000,-150.0,0.00028493,2]
[424963628,1781357455000,-150.0,0.00028493,2]
[424963642,1781357455000,-6370.51582211,0.00013528,2]
[424963640,1781357455000,-2705.09019005,0.000109,2]
[424963641,1781357455000,-5684.06342575,0.00013528,2]
[424963639,1781357455000,-1067.05589659,0.0001,2]
[424963638,1781357455000,-841.2780329,0.0001,2]
[424963632,1781357455000,-150.0,0.00028493,2]
[424963636,1781357455000,-150.0,0.00028493,2]
[424963643,1781357455000,-2614.89445108,0.00013528,2]
[424963635,1781357455000,-150.0,0.00028493,2]
[424963633,1781357455000,-150.0,0.00028493,2]
[424963637,1781357455000,-34.28685213,0.00028493,2]
[424963631,1781357455000,-150.0,0.00028493,2]
[424963629,1781357455000,-150.0,0.00028493,2]
[424963630,1781357455000,-150.0,0.00028493,2]
[424963634,1781357455000,-150.0,0.00028493,2]
[424963644,1781357504000,-500.0,8.142e-05,2]
[424963649,1781357654000,-320.0,8.141e-05,2]
[424963650,1781357803000,-564.7728043,7.693e-05,2]
[424963651,1781357826000,-105.1271957,7.693e-05,2]
[424963656,1781357920000,-500.0,0.00028667,120]
[424963653,1781357920000,-500.0,0.00027819,120]
[424963654,1781357920000,-321.17,0.0002843,120]
[424963657,1781357920000,-1178.83,0.0002871,120]
[424963655,1781357920000,-500.0,0.00028667,120]
[424963658,1781357982000,-2395.5,7.472e-05,2]
[424963659,1781358004000,-2395.5,7.472e-05,2]
[424963660,1781358027000,-5203.76694484,7.472e-05,2]
[424963662,1781358051000,-5203.76694484,7.472e-05,2]
[424963663,1781358073000,-626.17754031,7.471e-05,2]
[424963664,1781358127000,-253.82,7.271e-05,2]
[424963665,1781358179000,-2369.08,7.349e-05,2]
[424963667,1781358233000,-500.0,7.348e-05,2]
[424963668,1781358289000,-500.0,7.348e-05,2]
[424963669,1781358341000,-1380.58219916,7.167e-05,2]
[424963670,1781358342000,-573.95127814,7.167e-05,2]
[424963673,1781358451000,-284.90194609,7.136e-05,2]
[424963672,1781358451000,-180.53,7.108e-05,2]
[424963674,1781358508000,-165.40805391,7.136e-05,2]
[424963675,1781358520000,220.41324244,7.308e-05,7]
[424963677,1781358562000,-309.6024713,7.165e-05,2]
[424963678,1781358562000,-320.14088781,7.165e-05,2]
[424963680,1781358562000,-500.0,7.165e-05,2]
[424963679,1781358562000,-500.0,7.165e-05,2]
[424963681,1781358562000,-500.0,7.165e-05,2]
[424963684,1781358562000,-257.36628799,7.165e-05,2]
[424963682,1781358562000,-500.0,7.165e-05,2]
[424963685,1781358562000,-151.52313596,7.165e-05,2]
[424963687,1781358562000,-186.79708137,7.165e-05,2]
[424963683,1781358562000,-500.0,7.165e-05,2]
[424963686,1781358562000,-500.0,7.165e-05,2]
[424963690,1781358562000,-500.0,7.165e-05,2]
[424963689,1781358562000,-500.0,7.165e-05,2]
[424963691,1781358562000,-500.0,7.165e-05,2]
[424963693,1781358562000,-260.81304153,7.165e-05,2]
[424963692,1781358562000,-239.18695847,7.165e-05,2]
[424963694,1781358562000,-500.0,7.165e-05,2]
[424963696,1781358562000,-79.50595465,7.165e-05,2]
[424963695,1781358562000,-500.0,7.165e-05,2]
[424963688,1781358562000,-500.0,7.165e-05,2]
[424963706,1781358563000,-500.0,7.165e-05,2]
[424963705,1781358563000,-500.0,7.165e-05,2]
[424963704,1781358563000,-500.0,7.165e-05,2]
[424963701,1781358563000,-500.0,7.165e-05,2]
[424963698,1781358563000,-500.0,7.165e-05,2]
[424963702,1781358563000,-500.0,7.165e-05,2]
[424963700,1781358563000,-500.0,7.165e-05,2]
[424963697,1781358563000,-420.49404535,7.165e-05,2]
[424963708,1781358563000,-510.0,7.165e-05,2]
[424963699,1781358563000,-500.0,7.165e-05,2]
[424963710,1781358563000,-500.0,7.165e-05,2]
[424963703,1781358563000,-500.0,7.165e-05,2]
[424963707,1781358563000,-500.0,7.165e-05,2]
[424963711,1781358563000,-500.0,7.165e-05,2]
[424963713,1781358563000,-3121.8065227,7.167e-05,2]
[424963709,1781358563000,-500.0,7.165e-05,2]
[424963712,1781358563000,-150.0,7.165e-05,2]
[424963714,1781358563000,-187.0,7.206e-05,2]
[424963716,1781358563000,-1257.79416935,7.347e-05,2]
[424963717,1781358563000,-187.0,7.349e-05,2]
[424963715,1781358563000,-187.0,7.278e-05,2]
[424963718,1781358563000,-162.76,7.352e-05,2]
[424963719,1781358563000,-19990.30127851,7.372e-05,2]
[424963720,1781358563000,-28655.21482984,7.372e-05,2]
[424963722,1781358571000,-3213.30523069,7.372e-05,2]
[424963721,1781358571000,-3227.41384275,7.372e-05,2]
[424963723,1781358616000,-5203.76694484,7.372e-05,2]
[424963735,1781358639000,-5203.76694484,7.372e-05,2]
[424963746,1781358640000,-865728.9058773,7.372e-05,2]
[424963738,1781358640000,-2361.07756471,7.372e-05,2]
[424963737,1781358640000,-5223.64883449,7.372e-05,2]
[424963739,1781358640000,-1915.2736008,7.372e-05,2]
[424963740,1781358640000,-595.5287795,7.372e-05,2]
[424963743,1781358640000,-1586.26738872,7.372e-05,2]
[424963745,1781358640000,-330.20217475,7.372e-05,2]
[424963741,1781358640000,-5066.79958262,7.372e-05,2]
[424963748,1781358640000,-51088.4707661,7.372e-05,2]
[424963744,1781358640000,-753.61719823,7.372e-05,2]
[424963747,1781358640000,-5968.83894176,7.372e-05,2]
[424963742,1781358640000,-2726.52883703,7.372e-05,2]
[424963750,1781358640000,-6226.23626858,7.372e-05,2]
[424963749,1781358640000,-3765.97484225,7.372e-05,2]
[424963752,1781358640000,-1267.11995351,7.372e-05,2]
[424963751,1781358640000,-1196.05118045,7.372e-05,2]
[424963808,1781358641000,-310.0,8.141e-05,2]
[424963798,1781358641000,-309.0,8.139e-05,2]
[424963794,1781358641000,-316.0,8.139e-05,2]
[424963793,1781358641000,-318.0,8.139e-05,2]
[424963792,1781358641000,-317.0,8.139e-05,2]
[424963796,1781358641000,-310.0,8.139e-05,2]
[424963797,1781358641000,-315.0,8.139e-05,2]
[424963787,1781358641000,-250.0,7.881e-05,2]
[424963795,1781358641000,-309.0,8.139e-05,2]
[424963805,1781358641000,-310.0,8.141e-05,2]
[424963820,1781358641000,-314.0,8.141e-05,2]
[424963804,1781358641000,-315.0,8.141e-05,2]
[424963807,1781358641000,-310.0,8.141e-05,2]
[424963799,1781358641000,-318.0,8.139e-05,2]
[424963800,1781358641000,-321.0,8.139e-05,2]
[424963801,1781358641000,-315.0,8.139e-05,2]
[424963806,1781358641000,-319.0,8.141e-05,2]
[424963803,1781358641000,-321.0,8.141e-05,2]
[424963810,1781358641000,-319.0,8.141e-05,2]
[424963811,1781358641000,-317.0,8.141e-05,2]
[424963789,1781358641000,-250.0,7.883e-05,2]
[424963802,1781358641000,-433.77602431,8.141e-05,2]
[424963786,1781358641000,-255.0,7.881e-05,2]
[424963772,1781358641000,-176.57283503,7.434e-05,2]
[424963791,1781358641000,-313.0,8.139e-05,2]
[424963818,1781358641000,-312.0,8.141e-05,2]
[424963753,1781358641000,-5436.19272981,7.372e-05,2]
[424963755,1781358641000,-475.66984602,7.372e-05,2]
[424963754,1781358641000,-580.23789574,7.372e-05,2]
[424963756,1781358641000,-1415.32341435,7.372e-05,2]
[424963765,1781358641000,-1196091.98975181,7.372e-05,2]
[424963767,1781358641000,-272.66,7.391e-05,2]
[424963769,1781358641000,-187.0,7.42e-05,2]
[424963774,1781358641000,-9321.50611032,7.472e-05,2]
[424963778,1781358641000,-187.0,7.563e-05,2]
[424963784,1781358641000,-195.0,7.849e-05,2]
[424963781,1781358641000,-434.18,7.667e-05,2]
[424963775,1781358641000,-1852.42,7.472e-05,2]
[424963777,1781358641000,-187.0,7.492e-05,2]
[424963776,1781358641000,-1900.85,7.485e-05,2]
[424963779,1781358641000,-187.0,7.634e-05,2]
[424963780,1781358641000,-200.0,7.644e-05,2]